fUSD/lending_fUSD_20250522
["ID","MTS","AMOUNT","RATE_DAILY","PERIOD"]
[361899521,1747876267598,-550.01,0.0003315,14]
[361899522,1747876267607,-420.0,0.0003315,14]
[361899523,1747876267617,-420.0,0.0003315,14]
[361899524,1747876267627,-420.0,0.0003315,14]
[361899525,1747876267637,-151.0,0.0003315,7]
[361899526,1747876267647,-420.0,0.0003315,14]
[361899527,1747876267657,-1621.25,0.0003315,14]
[361899528,1747876267667,-420.0,0.0003315,14]
[361899529,1747876267676,-420.0,0.0003315,14]
[361899530,1747876267686,-420.0,0.0003315,14]
[361899531,1747876267696,-443.41,0.0003315,14]
[361899532,1747876267706,-483.23,0.0003315,14]
[361899533,1747876267717,-1210.79,0.0003315,14]
[361899534,1747876267726,-591.05,0.0003315,14]
[361899535,1747876267735,-344.32,0.0003315,14]
[361899536,1747876267745,-978.78,0.0003315,14]
[361899537,1747876267755,-420.0,0.0003315,14]
[361899538,1747876267764,-706.84,0.0003315,14]
[361899539,1747876267774,-831.49,0.0003315,14]
[361899540,1747876267785,-1328.83,0.0003315,14]
[361899541,1747876267794,-1139.21,0.0003315,14]
[361899542,1747876267804,-420.0,0.0003315,14]
[361899543,1747876267813,-1106.11,0.0003315,14]
[361899544,1747876267823,-420.0,0.0003315,14]
[361899545,1747876267832,-1288.4,0.0003315,14]
[361899546,1747876267842,-420.0,0.0003315,14]
[361899547,1747876267851,-420.0,0.0003315,14]
[361899548,1747876267861,-616.23,0.0003315,14]
[361899549,1747876267870,-1358.53,0.0003315,14]
[361899550,1747876267879,-420.0,0.0003315,14]
[361899551,1747876267889,-1007.93,0.0003315,14]
[361899552,1747876267898,-1409.92,0.0003315,14]
[361899553,1747876267908,-420.0,0.0003315,14]
[361899554,1747876267917,-1161.65,0.0003315,14]
[361899555,1747876267927,-420.0,0.0003315,14]
[361899556,1747876267936,-558.52,0.0003315,14]
[361899557,1747876267946,-764.92,0.0003315,14]
[361899558,1747876267955,-420.0,0.0003315,14]
[361899559,1747876267965,-420.0,0.0003315,14]
[361899560,1747876267974,-420.0,0.0003315,14]
[361899561,1747876267984,-420.0,0.0003315,14]
[361899562,1747876267993,-420.0,0.0003315,14]
[361899563,1747876268003,-1111.44,0.0003315,14]
[361899564,1747876268013,-583.0,0.0003315,14]
[361899565,1747876268024,-2050.44,0.0003315,14]
[361899566,1747876268036,-420.0,0.0003315,2]
[361899567,1747876268046,-420.0,0.0003315,14]
[361899568,1747876268056,-1355.11,0.0003315,14]
[361899569,1747876268066,-420.0,0.0003315,14]
[361899570,1747876268079,-1456.11,0.0003315,14]
[361899571,1747876268088,-489.24,0.0003315,14]
[361899572,1747876268098,-420.0,0.0003315,14]
[361899573,1747876268107,-420.0,0.0003315,14]
[361899574,1747876268118,-658.61,0.0003315,14]
[361899575,1747876268127,-151.0,0.0003315,7]
[361899576,1747876268136,-420.0,0.0003315,14]
[361899577,1747876268146,-151.0,0.0003315,7]
[361899578,1747876268159,-1193.48,0.0003315,14]
[361899579,1747876268170,-420.0,0.0003315,14]
[361899580,1747876268180,-624.38,0.0003315,14]
[361899581,1747876268189,-1842.4,0.0003315,14]
[361899582,1747876268199,-573.58,0.0003315,14]
[361899583,1747876268209,-420.0,0.0003315,14]
[361899584,1747876268219,-420.0,0.0003315,14]
[361899585,1747876268229,-1087.89,0.0003315,14]
[361899586,1747876268240,-420.0,0.0003315,14]
[361899587,1747876268250,-652.06,0.0003315,14]
[361899588,1747876268261,-420.0,0.0003315,14]
[361899589,1747876268271,-478.64,0.0003315,14]
[361899590,1747876268282,-420.0,0.0003315,14]
[361899591,1747876268292,-420.0,0.0003315,14]
[361899592,1747876268302,-477.95,0.0003315,14]
[361899593,1747876268312,-791.89,0.0003315,14]
[361899594,1747876268322,-420.0,0.0003315,14]
[361899595,1747876268332,-1527.3,0.0003315,14]
[361899596,1747876268342,-420.0,0.0003315,14]
[361899597,1747876268353,-420.0,0.0003315,14]
[361899598,1747876268363,-979.05,0.0003315,14]
[361899599,1747876268372,-429.18,0.0003315,14]
[361899600,1747876268382,-529.99,0.0003315,14]
[361899601,1747876268392,-1225.11,0.0003315,14]
[361899602,1747876268402,-785.09,0.0003315,14]
[361899603,1747876268412,-420.0,0.0003315,14]
[361899604,1747876268422,-422.9,0.0003315,14]
[361899605,1747876268432,-420.0,0.0003315,14]
[361899606,1747876268442,-1071.49,0.0003315,14]
[361899607,1747876268452,-717.83,0.0003315,14]
[361899608,1747876268462,-870.82,0.0003315,14]
[361899609,1747876268472,-841.18,0.0003315,14]
[361899610,1747876268482,-420.0,0.0003315,14]
[361899611,1747876268492,-464.06,0.0003315,14]
[361899612,1747876268502,-521.69,0.0003315,14]
[361899613,1747876268512,-420.0,0.0003315,14]
[361899614,1747876268521,-420.0,0.0003315,14]
[361899615,1747876268533,-1700.25,0.0003315,14]
[361899616,1747876268542,-1221.8,0.0003315,14]
[361899617,1747876268553,-1264.42,0.0003315,14]
[361899618,1747876268562,-528.32,0.0003315,14]
[361899619,1747876268571,-420.0,0.0003315,14]
[361899620,1747876268581,-420.0,0.0003315,14]
[361899621,1747876268592,-420.0,0.0003315,14]
[361899622,1747876268602,-698.28,0.0003315,14]
[361899623,1747876268612,-420.0,0.0003315,14]
[361899624,1747876268621,-430.79,0.0003315,14]
[361899625,1747876268631,-420.0,0.0003315,14]
[361899626,1747876268640,-844.64,0.0003315,14]
[361899627,1747876268656,-1155.05,0.0003315,14]
[361899628,1747876268667,-227.83504223,0.0003315,14]
[361899629,1747876268677,-420.0,0.0003315,14]
[361899630,1747876268687,-420.0,0.0003315,14]
[361899631,1747876268697,-463.1,0.0003315,14]
[361899632,1747876268706,-420.0,0.0003315,14]
[361899633,1747876268716,-420.0,0.0003315,14]
[361899634,1747876268726,-420.0,0.0003315,14]
[361899635,1747876268736,-479.84,0.0003315,14]
[361899636,1747876268746,-420.0,0.0003315,14]
[361899637,1747876268755,-420.0,0.0003315,14]
[361899638,1747876268765,-867.55,0.0003315,14]
[361899639,1747876268775,-420.0,0.0003315,14]
[361899640,1747876268786,-893.53,0.0003315,14]
[361899641,1747876268795,-420.0,0.0003315,14]
[361899642,1747876268805,-294.03682716,0.0003315,14]
[361899643,1747876268815,-423.52,0.0003315,14]
[361899644,1747876268825,-661.08,0.0003315,14]
[361899645,1747876268834,-420.0,0.0003315,14]
[361899646,1747876268844,-420.0,0.0003315,14]
[361899647,1747876268853,-608.11,0.0003315,14]
[361899648,1747876268863,-400.0,0.0003315,14]
[361899649,1747876268872,-420.0,0.0003315,14]
[361899650,1747876268881,-420.0,0.0003315,14]
[361899651,1747876268890,-678.64,0.0003315,14]
[361899652,1747876268901,-420.0,0.0003315,14]
[361899653,1747876268910,-1833.07,0.0003315,14]
[361899654,1747876268920,-420.0,0.0003315,7]
[361899655,1747876268929,-1222.46,0.0003315,14]
[361899656,1747876268939,-420.0,0.0003315,14]
[361899657,1747876268948,-500.0,0.0003315,120]
[361899658,1747876268958,-420.0,0.0003315,14]
[361899659,1747876268968,-420.0,0.0003315,14]
[361899660,1747876268977,-420.0,0.0003315,14]
[361899661,1747876268987,-434.84,0.0003315,14]
[361899662,1747876268998,-1094.84,0.0003315,14]
[361899663,1747876269007,-420.0,0.0003315,14]
[361899664,1747876269018,-420.0,0.0003315,14]
[361899665,1747876269027,-420.0,0.0003315,14]
[361899666,1747876269037,-727.85,0.0003315,14]
[361899667,1747876269047,-420.0,0.0003315,14]
[361899668,1747876269056,-1048.7,0.0003315,14]
[361899669,1747876269065,-151.0,0.0003315,7]
[361899670,1747876269076,-420.0,0.0003315,14]
[361899671,1747876269086,-2341.51,0.0003315,14]
[361899672,1747876269096,-216.81347905,0.0003315,14]
[361899673,1747876269106,-865.45,0.0003315,14]
[361899674,1747876269118,-421.71,0.0003315,14]
[361899675,1747876269129,-1114.62,0.0003315,14]
[361899676,1747876269139,-1367.0,0.0003315,14]
[361899677,1747876269151,-420.0,0.0003315,14]
[361899678,1747876269160,-420.0,0.0003315,14]
[361899679,1747876269170,-420.0,0.0003315,14]
[361899680,1747876269180,-362.73105497,0.0003315,14]
[361899681,1747876269190,-151.0,0.0003315,7]
[361899682,1747876269201,-657.11,0.0003315,14]
[361899683,1747876269210,-1996.72,0.0003315,14]
[361899684,1747876269220,-420.0,0.0003315,14]
[361899685,1747876269229,-1166.81,0.0003315,14]
[361899686,1747876269240,-699.4,0.0003315,14]
[361899687,1747876269249,-947.24,0.0003315,14]
[361899688,1747876269259,-3567.45,0.0003315,14]
[361899689,1747876269270,-500.0,0.0003315,14]
[361899690,1747876269279,-420.0,0.0003315,14]
[361899691,1747876269290,-508.28,0.0003315,14]
[361899692,1747876269300,-2000.0,0.0003315,14]
[361899693,1747876269310,-420.0,0.0003315,14]
[361899694,1747876269320,-425.11,0.0003315,14]
[361899695,1747876269330,-420.0,0.0003315,14]
[361899696,1747876269339,-402.74814782,0.0003315,14]
[361899697,1747876269349,-1178.46,0.0003315,14]
[361899698,1747876269359,-854.42,0.0003315,14]
[361899699,1747876269369,-711.79,0.0003315,14]
[361899700,1747876269379,-420.0,0.0003315,14]
[361899701,1747876269388,-947.46,0.0003315,14]
[361899702,1747876269398,-1142.35,0.0003315,14]
[361899703,1747876269408,-151.0,0.0003315,7]
[361899704,1747876269418,-420.0,0.0003315,14]
[361899705,1747876269427,-565.57420314,0.0003315,14]
[361899706,1747876269437,-833.42,0.0003315,14]
[361899707,1747876269447,-387.46720129,0.0003315,14]
[361899708,1747876269458,-559.41,0.0003315,14]
[361899709,1747876269468,-430.88,0.0003315,14]
[361899710,1747876269478,-420.0,0.0003315,14]
[361899711,1747876269488,-185.26964093,0.0003315,14]
[361899712,1747876269498,-151.0,0.0003315,7]
[361899713,1747876269507,-151.0,0.0003315,7]
[361899714,1747876269517,-1347.46,0.0003315,14]
[361899715,1747876269656,-1626.75,0.0003315,14]
[361899716,1747876269667,-420.0,0.0003315,14]
[361899717,1747876269678,-420.0,0.0003315,14]
[361899718,1747876269688,-420.0,0.0003315,14]
[361899719,1747876269698,-420.0,0.0003315,14]
[361899720,1747876269708,-420.0,0.0003315,14]
[361899721,1747876269717,-420.0,0.0003315,14]
[361899722,1747876269727,-595.53,0.0003315,14]
[361899723,1747876269737,-200.23696,0.0003315,7]
[361899724,1747876269746,-420.0,0.0003315,14]
[361899725,1747876269756,-151.0,0.0003315,7]
[361899726,1747876269765,-1041.13,0.0003315,14]
[361899727,1747876269774,-561.42,0.0003315,14]
[361899728,1747876269784,-420.0,0.0003315,14]
[361899729,1747876269794,-420.0,0.0003315,14]
[361899730,1747876269804,-1617.01,0.0003315,14]
[361899731,1747876269813,-420.0,0.0003315,14]
[361899732,1747876269822,-420.0,0.0003315,14]
[361899733,1747876269831,-420.0,0.0003315,14]
[361899734,1747876269841,-420.0,0.0003315,14]
[361899735,1747876269851,-1847.99,0.0003315,14]
[361899736,1747876269860,-1124.01,0.0003315,14]
[361899737,1747876269870,-420.0,0.0003315,14]
[361899738,1747876269879,-420.0,0.0003315,14]
[361899739,1747876269889,-420.0,0.0003315,14]
[361899740,1747876269899,-1134.0,0.0003315,14]
[361899741,1747876269910,-151.0,0.0003315,7]
[361899742,1747876269921,-151.0,0.0003315,7]
[361899743,1747876269931,-1021.89,0.0003315,14]
[361899744,1747876269943,-420.0,0.0003315,14]
[361899745,1747876269953,-1077.33,0.0003315,14]
[361899746,1747876269962,-420.0,0.0003315,14]
[361899747,1747876269971,-420.0,0.0003315,14]
[361899748,1747876269980,-420.0,0.0003315,14]
[361899749,1747876269989,-1195.16,0.0003315,14]
[361899750,1747876269998,-420.0,0.0003315,14]
[361899751,1747876270007,-420.0,0.0003315,14]
[361899752,1747876270016,-955.91,0.0003315,14]
[361899753,1747876270026,-1578.04,0.0003315,14]
[361899754,1747876270036,-1243.79,0.0003315,14]
[361899755,1747876270045,-420.0,0.0003315,14]
[361899756,1747876270054,-576.27,0.0003315,14]
[361899757,1747876270063,-1434.12,0.0003315,14]
[361899758,1747876270073,-1593.0,0.0003315,14]
[361899759,1747876270085,-500.15,0.0003315,14]
[361899760,1747876270094,-475.61,0.0003315,14]
[361899761,1747876270103,-785.03,0.0003315,14]
[361899762,1747876270113,-598.34,0.0003315,14]
[361899763,1747876270123,-621.07,0.0003315,14]
[361899764,1747876270132,-420.0,0.0003315,14]
[361899765,1747876270142,-420.0,0.0003315,14]
[361899766,1747876270151,-420.0,0.0003315,14]
[361899767,1747876270162,-992.71,0.0003315,14]
[361899768,1747876270172,-1093.85,0.0003315,14]
[361899769,1747876270182,-477.34,0.0003315,14]
[361899770,1747876270191,-420.0,0.0003315,14]
[361899771,1747876270202,-420.0,0.0003315,14]
[361899772,1747876270212,-420.0,0.0003315,14]
[361899773,1747876270222,-666.82,0.0003315,14]
[361899774,1747876270231,-420.0,0.0003315,14]
[361899775,1747876270242,-420.0,0.0003315,14]
[361899776,1747876270253,-420.0,0.0003315,14]
[361899777,1747876270262,-687.29449883,0.0003315,14]
[361899778,1747876270958,-310.92550117,0.0003315,14]
[361899779,1747876270968,-164.5466559,0.0003315,14]
[361899780,1747876270979,-255.4533441,0.0003315,14]
[361899781,1747876270988,-420.0,0.0003315,14]
[361899782,1747876270998,-197.58819378,0.0003315,14]
[361899783,1747876271517,-420.0,0.00032876,14]
[361899784,1747876271526,-222.41180622,0.0003315,14]
[361899785,1747876271538,-317.78042063,0.0003315,14]
[361899786,1747876271558,-14.21972803,0.0003315,14]
[361899787,1747876271568,-694.44089451,0.0003315,14]
[361899788,1747876271580,-531.11910549,0.0003315,14]
[361899789,1747876271589,-420.0,0.0003315,14]
[361899790,1747876271599,-282.67775031,0.0003315,14]
[361899791,1747876271611,-137.32224969,0.0003315,14]
[361899792,1747876271622,-420.0,0.0003315,14]
[361899793,1747876271631,-420.0,0.0003315,14]
[361899794,1747876271641,-563.91,0.0003315,14]
[361899795,1747876271650,-1049.26775034,0.0003315,14]
[361899796,1747876271662,-1079.57224966,0.0003315,14]
[361899797,1747876271672,-546.7,0.0003315,14]
[361899798,1747876271681,-263.82775034,0.0003315,14]
[361899799,1747876271692,-239.02224966,0.0003315,14]
[361899800,1747876271701,-431.21347533,0.0003315,14]
[361899801,1747876271720,-274.58652467,0.0003315,14]
[361899802,1747876271729,-382.69274659,0.0003315,14]
[361899803,1747876271740,-53.92725341,0.0003315,14]
[361899804,1747876271749,-420.0,0.0003315,14]
[361899805,1747876271759,-190.70484379,0.0003315,14]
[361899806,1747876271770,-264.26515621,0.0003315,14]
[361899807,1747876271780,-324.48284379,0.0003315,14]
[361899808,1747876271794,-95.51715621,0.0003315,14]
[361899809,1747876271803,-300.0,0.0003315,14]
[361899810,1747876271813,-420.0,0.0003315,14]
[361899811,1747876271822,-420.0,0.0003315,14]
[361899812,1747876271833,-930.65,0.0003315,14]
[361899813,1747876271842,-2317.43484379,0.0003315,7]
[361899814,1747876271866,-430.63108234,0.00020211,2]
[361899815,1747876271875,-431.97766829,0.0003315,7]
[361899816,1747876271887,-8249.9,0.0003315,7]
[361899817,1747876271899,-24065.77748792,0.0003315,7]
[361899818,1747876271908,-420.0,0.0003315,14]
[361899819,1747876271917,-715.09,0.0003315,14]
[361899820,1747876271927,-420.0,0.0003315,14]
[361899821,1747876271936,-151.0,0.0003315,7]
[361899822,1747876271946,-2051.16,0.0003315,14]
[361899823,1747876271955,-695.04,0.0003315,14]
[361899824,1747876271964,-813.33,0.0003315,14]
[361899825,1747876271974,-420.0,0.0003315,14]
[361899826,1747876271983,-1845.44,0.0003315,14]
[361899827,1747876271992,-420.0,0.0003315,14]
[361899828,1747876272002,-420.0,0.0003315,14]
[361899829,1747876272012,-1000.0,0.0003315,14]
[361899830,1747876272021,-1815.23,0.0003315,14]
[361899831,1747876272031,-2446.28,0.0003315,14]
[361899832,1747876272041,-420.0,0.0003315,14]
[361899833,1747876272050,-420.0,0.0003315,14]
[361899834,1747876272059,-500.0,0.0003315,2]
[361899835,1747876272070,-420.0,0.0003315,14]
[361899836,1747876272083,-491.29,0.0003315,14]
[361899837,1747876272092,-456.87,0.0003315,14]
[361899838,1747876272102,-825.68,0.0003315,14]
[361899839,1747876272112,-420.0,0.0003315,14]
[361899840,1747876272122,-578.94,0.0003315,14]
[361899841,1747876272132,-1070.19,0.0003315,14]
[361899842,1747876272142,-420.0,0.0003315,14]
[361899843,1747876272152,-1600.77,0.0003315,14]
[361899844,1747876272170,-451.36,0.0003315,14]
[361899845,1747876272180,-420.0,0.0003315,14]
[361899846,1747876272190,-1363.8,0.0003315,14]
[361899847,1747876272199,-420.0,0.0003315,14]
[361899848,1747876272209,-420.0,0.0003315,14]
[361899849,1747876272218,-508.45,0.0003315,14]
[361899850,1747876272228,-420.0,0.0003315,14]
[361899851,1747876272237,-1692.02,0.0003315,14]
[361899852,1747876272248,-563.18,0.0003315,14]
[361899853,1747876272257,-588.94,0.0003315,14]
[361899854,1747876272267,-420.0,0.0003315,14]
[361899855,1747876272276,-420.0,0.0003315,14]
[361899856,1747876272286,-488.0,0.0003315,14]
[361899857,1747876272295,-1736.69,0.0003315,14]
[361899858,1747876272305,-420.0,0.0003315,14]
[361899859,1747876272315,-820.35,0.0003315,14]
[361899860,1747876272324,-4149.62,0.0003315,14]
[361899861,1747876272334,-499.28,0.0003315,14]
[361899862,1747876272343,-420.0,0.0003315,14]
[361899863,1747876272353,-1499.77,0.0003315,14]
[361899864,1747876272362,-499.53,0.0003315,14]
[361899865,1747876272371,-420.0,0.0003315,14]
[361899866,1747876272381,-420.0,0.0003315,14]
[361899867,1747876272391,-293.309899,0.0003315,7]
[361899868,1747876272401,-420.0,0.0003315,14]
[361899869,1747876272410,-420.0,0.0003315,14]
[361899870,1747876272420,-420.0,0.0003315,14]
[361899871,1747876272429,-420.0,0.0003315,14]
[361899872,1747876272439,-420.0,0.0003315,14]
[361899873,1747876272450,-499.21512011,0.0003315,14]
[361899874,1747876272460,-7869.76,0.0003315,14]
[361899875,1747876272471,-420.0,0.0003315,14]
[361899876,1747876272481,-982.51,0.0003315,14]
[361899877,1747876272491,-1590.74,0.0003315,14]
[361899878,1747876272501,-293.309899,0.0003315,7]
[361899879,1747876272511,-420.0,0.0003315,14]
[361899880,1747876272521,-420.0,0.0003315,14]
[361899881,1747876272532,-420.0,0.0003315,14]
[361899882,1747876272543,-185.7220969,0.0003315,14]
[361899883,1747876272553,-1015.92,0.0003315,14]
[361899884,1747876272562,-420.0,0.0003315,14]
[361899885,1747876272572,-420.0,0.0003315,14]
[361899886,1747876272582,-420.0,0.0003315,14]
[361899887,1747876272592,-420.0,0.0003315,14]
[361899888,1747876272601,-420.0,0.0003315,14]
[361899889,1747876272612,-420.0,0.0003315,14]
[361899890,1747876272622,-1003.22,0.0003315,14]
[361899891,1747876272632,-420.0,0.0003315,14]
[361899892,1747876272642,-151.0,0.0003315,7]
[361899893,1747876272652,-546.91,0.0003315,14]
[361899894,1747876272662,-151.0,0.0003315,7]
[361899895,1747876272672,-632.46,0.0003315,14]
[361899896,1747876272683,-420.0,0.0003315,14]
[361899897,1747876272694,-234.01720049,0.0003315,14]
[361899898,1747876272704,-961.42,0.0003315,14]
[361899899,1747876272715,-420.0,0.0003315,14]
[361899900,1747876272724,-1931.21,0.0003315,14]
[361899901,1747876272735,-420.0,0.0003315,14]
[361899902,1747876272745,-1080.13,0.0003315,14]
[361899903,1747876272754,-437.43,0.0003315,14]
[361899904,1747876272765,-420.0,0.0003315,14]
[361899905,1747876272775,-1075.92,0.0003315,14]
[361899906,1747876272787,-420.0,0.0003315,14]
[361899907,1747876272797,-420.0,0.0003315,14]
[361899908,1747876272807,-643.79,0.0003315,14]
[361899909,1747876272817,-420.0,0.0003315,14]
[361899910,1747876272828,-420.0,0.0003315,14]
[361899911,1747876272838,-420.0,0.0003315,14]
[361899912,1747876272848,-555.47,0.0003315,14]
[361899913,1747876272857,-420.0,0.0003315,14]
[361899914,1747876272867,-1641.51,0.0003315,14]
[361899915,1747876272879,-909.48,0.0003315,14]
[361899916,1747876272889,-420.0,0.0003315,14]
[361899917,1747876272901,-1331.72,0.0003315,14]
[361899918,1747876272911,-420.0,0.0003315,14]
[361899919,1747876272921,-1016.48,0.0003315,14]
[361899920,1747876272932,-1512.69,0.0003315,14]
[361899921,1747876272941,-420.0,0.0003315,14]
[361899922,1747876272951,-456.34320295,0.0003315,14]
[361899923,1747876272961,-1258.58,0.0003315,14]
[361899924,1747876272971,-420.0,0.0003315,14]
[361899925,1747876272981,-420.0,0.0003315,14]
[361899926,1747876272991,-430.22,0.0003315,14]
[361899927,1747876273001,-3690.81,0.0003315,14]
[361899928,1747876273011,-420.0,0.0003315,14]
[361899929,1747876273021,-420.0,0.0003315,14]
[361899930,1747876273031,-420.0,0.0003315,14]
[361899931,1747876273045,-420.0,0.0003315,14]
[361899932,1747876273055,-1297.86,0.0003315,14]
[361899933,1747876273065,-420.0,0.0003315,14]
[361899934,1747876273075,-1808.83,0.0003315,14]
[361899935,1747876273088,-551.95,0.0003315,14]
[361899936,1747876273097,-420.0,0.0003315,14]
[361899937,1747876273107,-420.0,0.0003315,14]
[361899938,1747876273117,-420.0,0.0003315,14]
[361899939,1747876273127,-538.72,0.0003315,14]
[361899940,1747876273137,-420.0,0.0003315,14]
[361899941,1747876273147,-783.79,0.0003315,14]
[361899942,1747876273159,-420.0,0.0003315,14]
[361899943,1747876273170,-420.0,0.0003315,14]
[361899944,1747876273180,-420.0,0.0003315,14]
[361899945,1747876273190,-524.752407,0.0003315,7]
[361899946,1747876273201,-420.0,0.0003315,14]
[361899947,1747876273211,-1161.13,0.0003315,14]
[361899948,1747876273221,-420.0,0.0003315,14]
[361899949,1747876273231,-406.685692,0.0003315,7]
[361899950,1747876273241,-541.23,0.0003315,14]
[361899951,1747876273251,-524.752407,0.0003315,7]
[361899952,1747876273261,-420.0,0.0003315,14]
[361899953,1747876273271,-3128.31,0.0003315,14]
[361899954,1747876273281,-420.0,0.0003315,14]
[361899955,1747876273292,-420.0,0.0003315,14]
[361899956,1747876273302,-420.0,0.0003315,14]
[361899957,1747876273312,-1565.28,0.0003315,14]
[361899958,1747876273322,-420.0,0.0003315,14]
[361899959,1747876273332,-1064.31,0.0003315,14]
[361899960,1747876273341,-1508.96,0.0003315,14]
[361899961,1747876273352,-420.0,0.0003315,14]
[361899962,1747876273362,-273.312384,0.0003315,14]
[361899963,1747876273372,-406.685692,0.0003315,7]
[361899964,1747876273383,-695.29,0.0003315,14]
[361899965,1747876273392,-420.0,0.0003315,14]
[361899966,1747876273403,-420.0,0.0003315,14]
[361899967,1747876273414,-1656.26,0.0003315,14]
[361899968,1747876273424,-420.0,0.0003315,14]
[361899969,1747876273435,-420.0,0.0003315,14]
[361899970,1747876273445,-1171.94,0.0003315,14]
[361899971,1747876273456,-5608.05,0.0003315,14]
[361899972,1747876273467,-1882.57,0.0003315,14]
[361899973,1747876273478,-420.0,0.0003315,14]
[361899974,1747876273488,-420.0,0.0003315,14]
[361899975,1747876273499,-1453.93,0.0003315,14]
[361899976,1747876273509,-498.13131976,0.0003315,14]
[361899977,1747876273520,-420.0,0.0003315,14]
[361899978,1747876273531,-938.15,0.0003315,14]
[361899979,1747876273543,-854.87,0.0003315,14]
[361899980,1747876273554,-584.06,0.0003315,14]
[361899981,1747876273564,-420.0,0.0003315,14]
[361899982,1747876273575,-381.90853006,0.0003315,14]
[361899983,1747876273585,-420.0,0.0003315,14]
[361899984,1747876273595,-420.0,0.0003315,14]
[361899985,1747876273605,-420.0,0.0003315,14]
[361899986,1747876273614,-305.40322519,0.0003315,14]
[361899987,1747876273624,-420.0,0.0003315,14]
[361899988,1747876273634,-453.83,0.0003315,14]
[361899989,1747876273645,-1493.25,0.0003315,14]
[361899990,1747876273655,-1134.8,0.0003315,14]
[361899991,1747876273666,-1331.77,0.0003315,14]
[361899992,1747876273677,-151.0,0.0003315,7]
[361899993,1747876273687,-1698.86,0.0003315,14]
[361899994,1747876273697,-420.0,0.0003315,14]
[361899995,1747876273708,-151.0,0.0003315,7]
[361899996,1747876273718,-497.95,0.0003315,14]
[361899997,1747876273728,-519.64,0.0003315,14]
[361899998,1747876273739,-420.0,0.0003315,14]
[361899999,1747876273749,-420.0,0.0003315,14]
[361900000,1747876273759,-420.0,0.0003315,14]
[361900001,1747876273769,-1766.07,0.0003315,14]
[361900002,1747876273779,-420.0,0.0003315,14]
[361900003,1747876273794,-420.0,0.0003315,14]
[361900004,1747876273805,-420.0,0.0003315,14]
[361900005,1747876273816,-420.0,0.0003315,14]
[361900006,1747876273826,-1587.53,0.0003315,14]
[361900007,1747876273836,-420.0,0.0003315,14]
[361900008,1747876273847,-420.0,0.0003315,14]
[361900009,1747876273858,-151.0,0.0003315,7]
[361900010,1747876273868,-420.0,0.0003315,14]
[361900011,1747876273879,-420.0,0.0003315,14]
[361900012,1747876273890,-1218.24,0.0003315,14]
[361900013,1747876273900,-346.677372,0.0003315,14]
[361900014,1747876273911,-420.0,0.0003315,14]
[361900015,1747876273922,-420.0,0.0003315,14]
[361900016,1747876273932,-420.0,0.0003315,14]
[361900017,1747876273943,-420.0,0.0003315,14]
[361900018,1747876273954,-420.0,0.0003315,14]
[361900019,1747876273964,-420.0,0.0003315,14]
[361900020,1747876273974,-420.0,0.0003315,14]